bitfinex/quotes_BTCUSD_20250812
["timestamp","ask_amount","ask_price","bid_price","bid_amount"]
[1755027121659,0.02169566,119850.0,119840.0,0.17729951]
[1755027121873,0.53236893,119850.0,119840.0,0.29612918]
[1755027122078,0.03858142,119850.0,119840.0,1.15160862]
[1755027122269,0.01972566,119850.0,119840.0,1.15160862]
[1755027122989,0.00227664,119850.0,119840.0,1.15160862]
[1755027130196,0.00424664,119850.0,119840.0,1.15160862]
[1755027132330,0.00227664,119850.0,119840.0,1.15160862]
[1755027132862,0.00424664,119850.0,119840.0,1.15160862]
[1755027135697,0.02493566,119850.0,119840.0,0.3044744]
[1755027135881,0.25308738,119850.0,119840.0,0.3044744]
[1755027136168,0.25308738,119850.0,119840.0,0.72544151]
[1755027136583,0.67405449,119850.0,119840.0,0.16688918]
[1755027136784,0.67405449,119850.0,119840.0,0.29604918]
[1755027137211,0.25308738,119850.0,119840.0,0.29604918]
[1755027142743,0.08621212,119850.0,119840.0,0.29604918]
[1755027143213,0.02493566,119850.0,119840.0,0.29604918]
[1755027145174,0.01972566,119850.0,119840.0,0.30124918]
[1755027146128,0.01972566,119850.0,119840.0,0.86272866]
[1755027148965,0.01972566,119850.0,119840.0,0.30124918]
[1755027149174,0.01972566,119850.0,119840.0,0.86272866]
[1755027150292,0.03838441,119850.0,119840.0,0.86272866]
[1755027150500,0.20650967,119850.0,119840.0,0.29816918]
[1755027150902,0.03963441,119850.0,119840.0,0.29816918]
[1755027151469,0.02097566,119850.0,119840.0,0.30124918]
[1755027151629,0.01972566,119850.0,119840.0,0.30124918]
[1755027151835,0.18806092,119850.0,119840.0,0.30109918]
[1755027152379,0.18806092,119850.0,119840.0,0.29801918]
[1755027153357,0.02118566,119850.0,119840.0,0.30109918]
[1755027153938,0.18806092,119850.0,119840.0,0.30109918]
[1755027154819,0.02118566,119850.0,119840.0,0.30109918]
[1755027155028,0.18806092,119850.0,119840.0,0.30109918]
[1755027155842,0.2238572,119850.0,119840.0,0.30109918]
[1755027156795,0.2223972,119850.0,119840.0,0.86257866]
[1755027157471,0.05552194,119850.0,119840.0,0.30109918]
[1755027157714,0.01972566,119850.0,119840.0,0.30109918]
[1755027157959,0.01972566,119850.0,119840.0,0.86257866]
[1755027158892,0.01972566,119850.0,119840.0,1.56257866]
[1755027160903,0.01972566,119850.0,119840.0,1.8430883]
[1755027164095,0.01972566,119850.0,119840.0,1.1430883]
[1755027165086,0.01972566,119850.0,119840.0,0.30109918]
[1755027165289,0.01972566,119850.0,119840.0,1.1430883]
[1755027166712,0.00227664,119850.0,119840.0,1.1430883]
[1755027167042,0.00227664,119850.0,119840.0,1.1681313]
[1755027186008,0.00227664,119850.0,119840.0,0.32614218]
[1755027186218,0.00227664,119850.0,119840.0,1.1681313]
[1755027186458,0.00227664,119850.0,119840.0,1.1691313]
[1755027186850,0.00227664,119850.0,119840.0,1.1681313]
[1755027187197,0.00227664,119850.0,119840.0,0.32814218]
[1755027187406,0.00227664,119850.0,119840.0,1.1691313]
[1755027188093,0.00227664,119850.0,119840.0,1.1701313]
[1755027189123,0.00227664,119850.0,119840.0,0.32814218]
[1755027189340,0.00227664,119850.0,119840.0,1.1701313]
[1755027189557,0.00227664,119850.0,119840.0,0.74913674]
[1755027189942,0.00227664,119850.0,119840.0,1.1701313]
[1755027192755,0.00436664,119850.0,119840.0,0.61492674]
[1755027192928,0.00436664,119850.0,119840.0,0.74376674]
[1755027193357,0.00436664,119850.0,119840.0,0.74575674]
[1755027193484,0.00436664,119850.0,119840.0,0.74891674]
[1755027193686,0.00436664,119850.0,119840.0,0.16888918]
[1755027193687,0.44590022,119850.0,119840.0,0.16888918]
[1755027193921,0.76287031,119850.0,119840.0,0.1308]
[1755027194764,0.76287031,119850.0,119840.0,0.1298]
[1755027195396,0.85390008,119850.0,119840.0,0.1288]
[1755027196787,0.99547883,119850.0,119840.0,0.1288]
[1755027196979,0.99747883,119850.0,119840.0,0.1288]
[1755027197487,0.98917231,119850.0,119840.0,0.1288]
[1755027198310,0.92156191,119850.0,119840.0,0.1288]
[1755027200563,0.92986251,119850.0,119840.0,0.1288]
[1755027202863,0.3599886,119850.0,119840.0,0.1288]
[1755027203242,0.92156191,119850.0,119840.0,0.1288]
[1755027204144,0.3599886,119850.0,119840.0,0.1288]
[1755027205299,0.3568986,119850.0,119840.0,0.1288]
[1755027206693,0.3568986,119850.0,119840.0,0.30083918]
[1755027206876,0.3548086,119850.0,119840.0,0.30083918]
[1755027207669,0.3568986,119850.0,119840.0,0.30083918]
[1755027207945,0.3568986,119850.0,119840.0,0.13395]
[1755027208544,0.3568986,119850.0,119840.0,0.30083918]
[1755027210210,0.3568986,119850.0,119840.0,0.13079]
[1755027210375,0.3568986,119850.0,119840.0,0.29568918]
[1755027211993,0.3568986,119850.0,119840.0,0.29783918]
[1755027212271,0.3568986,119850.0,119840.0,0.30091918]
[1755027212738,0.10544891,119850.0,119840.0,0.30091918]
[1755027212952,0.02272566,119850.0,119840.0,0.30091918]
[1755027220506,0.18960092,119850.0,119840.0,0.30091918]
[1755027220855,0.19088092,119850.0,119840.0,0.29556918]
[1755027221065,0.76506969,119850.0,119840.0,0.29556918]
[1755027221268,0.27336535,119850.0,119840.0,0.29556918]
[1755027221467,0.27336535,119850.0,119830.0,0.74417139]
[1755027221468,0.76506969,119850.0,119830.0,0.74417139]
[1755027221667,0.19088092,119850.0,119840.0,0.29556918]
[1755027221939,0.76506969,119850.0,119840.0,0.29556918]
[1755027222338,0.76406969,119850.0,119840.0,0.29556918]
[1755027222847,0.18988092,119850.0,119840.0,0.29556918]
[1755027223012,0.18988092,119850.0,119840.0,0.30079918]
[1755027223734,0.27236535,119850.0,119840.0,0.30079918]
[1755027224216,0.27336535,119850.0,119840.0,0.30079918]
[1755027224550,0.27208535,119850.0,119840.0,0.30079918]
[1755027226040,0.7845646,119850.0,119840.0,0.12868]
[1755027226257,0.27722535,119850.0,119840.0,0.12868]
[1755027228952,0.1843382,119840.0,119820.0,0.71930236]
[1755027229092,0.26841163,119840.0,119830.0,0.82864]
[1755027229299,0.27043163,119840.0,119830.0,0.82864]
[1755027230529,0.27043163,119840.0,119830.0,0.12864]
[1755027232689,0.27043163,119840.0,119830.0,0.29554311]
[1755027232863,0.27043163,119840.0,119830.0,0.12864]
[1755027234027,0.27043163,119840.0,119830.0,0.29554311]
[1755027235004,0.27043163,119840.0,119830.0,0.16690311]
[1755027235195,0.27355163,119840.0,119830.0,0.29550311]
[1755027235544,0.27355163,119840.0,119830.0,0.1286]
[1755027235758,0.01744902,119820.0,119810.0,0.17526358]
[1755027235974,0.03588423,119820.0,119810.0,0.30909358]
[1755027236591,0.03588423,119820.0,119810.0,0.33414458]
[1755027236861,0.03588423,119820.0,119810.0,0.33514458]
[1755027237978,0.03588423,119820.0,119810.0,0.34442314]
[1755027239404,0.03588423,119820.0,119810.0,0.85488239]
[1755027240585,0.01744902,119820.0,119810.0,0.85488239]
[1755027241090,0.01744902,119820.0,119810.0,0.82983139]
[1755027245722,0.01744902,119820.0,119810.0,0.85488239]
[1755027246086,0.01744902,119820.0,119810.0,0.82983139]
[1755027246458,0.01744902,119820.0,119810.0,0.85488239]
[1755027247613,0.01744902,119820.0,119810.0,0.34442314]
[1755027247817,0.01744902,119820.0,119810.0,0.85488239]
[1755027248389,0.01744902,119820.0,119810.0,0.82983139]
[1755027250707,0.01744902,119820.0,119810.0,0.85488239]
[1755027251098,0.001589,119830.0,119820.0,0.16691704]
[1755027251450,0.001589,119830.0,119820.0,0.68461275]
[1755027251655,0.01903802,119830.0,119820.0,0.68252629]
[1755027254240,0.001589,119830.0,119820.0,0.68252629]
[1755027254647,0.001589,119830.0,119820.0,0.70757229]
[1755027255793,0.001589,119830.0,119820.0,0.83605229]
[1755027264950,0.001589,119830.0,119820.0,0.91877554]
[1755027266347,0.001589,119830.0,119820.0,0.91977554]
[1755027266924,0.001589,119830.0,119820.0,0.92077554]
[1755027267138,0.001589,119830.0,119820.0,0.91977554]
[1755027267472,0.001589,119830.0,119820.0,0.92177554]
[1755027268541,0.001589,119830.0,119820.0,0.92277554]
[1755027275043,1e-08,119850.0,119840.0,1.33780768]
[1755027275256,1e-08,119850.0,119840.0,1.55098093]
[1755027275675,1e-08,119850.0,119840.0,1.55423093]
[1755027275941,1e-08,119850.0,119840.0,1.57926793]
[1755027276379,1e-08,119850.0,119840.0,1.58026793]
[1755027276608,1e-08,119850.0,119840.0,1.58226793]
[1755027276856,1e-08,119850.0,119840.0,1.07180868]
[1755027277075,1e-08,119850.0,119840.0,1.58226793]
[1755027280664,1e-08,119850.0,119840.0,3.27010393]
[1755027282580,1e-08,119850.0,119840.0,3.11334493]
[1755027284619,1e-08,119850.0,119840.0,2.38094293]
[1755027284786,1e-08,119850.0,119840.0,2.24859893]
[1755027287621,0.0708104,119890.0,119880.0,0.1668335]
[1755027287809,0.06973916,119890.0,119880.0,1.42943742]
[1755027288033,0.06973916,119890.0,119880.0,0.91689276]
[1755027288401,0.06973916,119890.0,119880.0,0.43146551]
[1755027288602,0.06973916,119890.0,119880.0,0.94192476]
[1755027289060,0.07293916,119890.0,119880.0,0.94192476]
[1755027289686,0.00532876,119890.0,119880.0,0.94192476]
[1755027290522,0.00612876,119890.0,119880.0,1.45447401]
[1755027290729,0.00812876,119890.0,119880.0,1.45447401]
[1755027290936,0.00812876,119890.0,119880.0,0.94192476]
[1755027291876,0.00812876,119890.0,119880.0,0.95028088]
[1755027293246,0.00812876,119890.0,119880.0,0.97783634]
[1755027294203,0.00812876,119890.0,119880.0,1.49154559]
[1755027294373,0.00812876,119890.0,119880.0,0.47062709]
[1755027294566,0.00812876,119890.0,119880.0,1.49154559]
[1755027294804,0.00812876,119890.0,119880.0,0.97783634]
[1755027295799,0.00812876,119890.0,119880.0,0.98108634]
[1755027296009,0.00604876,119890.0,119880.0,2.19154559]
[1755027296429,0.00604876,119890.0,119880.0,1.17062709]
[1755027296777,0.00604876,119890.0,119880.0,2.19154559]
[1755027297569,0.00604876,119890.0,119880.0,1.17062709]
[1755027297767,0.00604876,119890.0,119880.0,2.19154559]
[1755027298016,0.00604876,119890.0,119880.0,1.49154559]
[1755027300981,0.00604876,119890.0,119880.0,2.19154559]
[1755027301907,0.00604876,119890.0,119880.0,2.39154559]
[1755027304286,0.00404876,119890.0,119880.0,2.26326559]
[1755027304517,0.00504876,119890.0,119880.0,2.19142559]
[1755027304946,0.00104876,119890.0,119880.0,2.19142559]
[1755027305399,0.00204876,119890.0,119880.0,2.19142559]
[1755027306564,0.00204876,119890.0,119880.0,1.49142559]
[1755027313818,0.00104876,119890.0,119880.0,1.49142559]
[1755027314364,0.00104876,119890.0,119880.0,1.49242559]
[1755027314549,0.00104876,119890.0,119880.0,1.69242559]
[1755027315092,0.10317,119920.0,119910.0,0.16679176]
[1755027315325,0.10535873,119920.0,119910.0,0.89017915]
[1755027315532,0.10535873,119920.0,119910.0,0.88809426]
[1755027315742,0.10218873,119920.0,119910.0,0.89018426]
[1755027315940,0.10218873,119920.0,119910.0,0.89314426]
[1755027316990,0.10218873,119920.0,119910.0,0.89018426]
[1755027317109,0.10418873,119920.0,119910.0,0.88809426]
[1755027317312,0.10518873,119920.0,119910.0,0.88809426]
[1755027317936,0.10835873,119920.0,119910.0,0.88809426]
[1755027318202,0.10835873,119920.0,119910.0,0.75997426]
[1755027318354,0.10835873,119920.0,119910.0,0.88805426]
[1755027318755,0.10835873,119920.0,119910.0,0.37759501]
[1755027318956,0.10835873,119920.0,119910.0,0.88805426]
[1755027321744,0.10518873,119920.0,119910.0,0.88805426]
[1755027325819,0.10518873,119920.0,119910.0,0.37759501]
[1755027326213,0.10518873,119920.0,119910.0,0.88805426]
[1755027328678,0.10835873,119920.0,119910.0,0.88805426]
[1755027329473,0.10835873,119920.0,119910.0,0.24951501]
[1755027329684,0.10835873,119920.0,119910.0,0.88805426]
[1755027329816,0.10518873,119920.0,119910.0,0.88805426]
[1755027331421,0.10518873,119920.0,119910.0,0.89011426]
[1755027333424,0.10518873,119920.0,119910.0,0.88805426]
[1755027333648,0.10518873,119920.0,119910.0,0.89011426]
[1755027336959,0.10518873,119920.0,119910.0,0.89327426]
[1755027337977,0.10518873,119920.0,119910.0,0.89011426]
[1755027338677,0.10518873,119920.0,119910.0,0.89327426]
[1755027339098,0.10304873,119920.0,119910.0,0.89327426]
[1755027340833,0.10304873,119920.0,119910.0,0.38281501]
[1755027341082,0.10518873,119920.0,119910.0,0.38281501]
[1755027341295,0.10518873,119920.0,119910.0,0.89327426]
[1755027342366,0.10518873,119920.0,119910.0,0.89011426]
[1755027343876,0.10518873,119920.0,119910.0,0.89327426]
[1755027344975,0.10831873,119920.0,119910.0,0.29483176]
[1755027345183,0.2925456,119920.0,119910.0,0.29483176]
[1755027346235,0.2925456,119920.0,119910.0,0.80529101]
[1755027346613,0.2925456,119920.0,119910.0,0.29483176]
[1755027346844,0.2925456,119920.0,119910.0,0.80529101]
[1755027347465,0.2875456,119920.0,119910.0,0.80529101]
[1755027348094,0.12076775,119920.0,119910.0,0.80529101]
[1755027348306,0.11763775,119920.0,119910.0,0.80529101]
[1755027348504,0.11549775,119920.0,119910.0,0.81051101]
[1755027349194,0.2844156,119920.0,119910.0,0.29689176]
[1755027349412,0.2844156,119920.0,119910.0,0.80529101]
[1755027349854,0.2844156,119920.0,119910.0,0.29483176]
[1755027350053,0.11763775,119920.0,119910.0,0.80529101]
[1755027350488,0.11763775,119920.0,119910.0,0.29483176]
[1755027350683,0.11763775,119920.0,119910.0,0.80529101]
[1755027350878,0.2844156,119920.0,119910.0,0.80529101]
[1755027351085,0.11763775,119920.0,119910.0,0.67725101]
[1755027351396,0.11763775,119920.0,119910.0,0.80525101]
[1755027352727,0.11763775,119920.0,119910.0,0.80731101]
[1755027353150,0.11763775,119920.0,119910.0,0.80525101]
[1755027354009,0.2844156,119920.0,119910.0,0.80525101]
[1755027354417,0.11763775,119920.0,119910.0,0.80525101]
[1755027355650,0.2844156,119920.0,119910.0,0.80525101]
[1755027355886,0.11763775,119920.0,119910.0,0.80525101]
[1755027356237,0.11763775,119920.0,119910.0,0.29479176]
[1755027356426,0.11763775,119920.0,119910.0,0.80525101]
[1755027357597,0.11763775,119920.0,119910.0,0.80731101]
[1755027358045,0.11549775,119920.0,119910.0,0.81047101]
[1755027358895,0.09804873,119920.0,119910.0,0.81047101]
[1755027361362,0.10011873,119920.0,119910.0,0.17201176]
[1755027361562,0.10011873,119920.0,119910.0,0.29475176]
[1755027361974,0.10011873,119920.0,119910.0,0.99475176]
[1755027364955,0.10011873,119920.0,119910.0,0.99678176]
[1755027365359,0.10011873,119920.0,119910.0,1.51042101]
[1755027365559,0.09804873,119920.0,119910.0,1.51042101]
[1755027368987,0.09804873,119920.0,119910.0,1.59314426]
[1755027369230,0.09804873,119920.0,119910.0,2.25360351]
[1755027369448,0.09804873,119920.0,119910.0,2.28000547]
[1755027369665,0.09804873,119920.0,119910.0,2.27862651]
[1755027374217,0.09804873,119920.0,119910.0,1.25770801]
[1755027374433,0.09804873,119920.0,119910.0,2.27862651]
[1755027376229,0.09804873,119920.0,119910.0,1.57862651]
[1755027379092,0.09804873,119920.0,119910.0,1.65862651]
[1755027379763,0.0181438,119950.0,119940.0,0.36675004]
[1755027380002,0.01822512,119950.0,119940.0,1.11921233]
[1755027380215,0.01822512,119950.0,119940.0,1.19921233]
[1755027380399,0.02029512,119950.0,119940.0,1.19921233]
[1755027380522,0.02029512,119950.0,119940.0,0.68875308]
[1755027380733,0.02029512,119950.0,119940.0,1.19921233]
[1755027381207,0.02429512,119950.0,119940.0,1.19921233]
[1755027381645,0.02429512,119950.0,119940.0,1.20239233]
[1755027381851,0.02929512,119950.0,119940.0,1.19921233]
[1755027382615,0.02929512,119950.0,119940.0,1.2077639]
[1755027383568,0.02722512,119950.0,119940.0,1.2109439]
[1755027384602,0.02722512,119950.0,119940.0,1.2359619]
[1755027386831,0.02722512,119950.0,119940.0,1.26109696]
[1755027387064,0.02722512,119950.0,119940.0,1.46109696]
[1755027391601,0.02932512,119950.0,119940.0,0.93313696]
[1755027391803,0.02932512,119950.0,119940.0,1.05787696]
[1755027392400,0.02932512,119950.0,119940.0,1.06085696]
[1755027394863,0.01631697,119950.0,119940.0,1.06085696]
[1755027397576,0.01631697,119950.0,119940.0,0.55039771]
[1755027397788,0.01631697,119950.0,119940.0,1.06085696]
[1755027397987,0.01631697,119950.0,119940.0,1.05787696]
[1755027398368,0.01631697,119950.0,119940.0,1.06085696]
[1755027398631,0.01631697,119950.0,119940.0,0.55039771]
[1755027398831,0.01631697,119950.0,119940.0,1.05584696]
[1755027399045,0.01935697,119950.0,119940.0,1.05584696]
[1755027399267,0.01631697,119950.0,119940.0,1.05584696]
[1755027399479,0.01631697,119950.0,119940.0,1.05781696]
[1755027400776,0.01631697,119950.0,119940.0,0.54735771]
[1755027400984,0.01631697,119950.0,119940.0,1.05781696]
[1755027401536,0.01631697,119950.0,119940.0,1.06079696]
[1755027401749,0.01421697,119950.0,119940.0,1.06079696]
[1755027402009,0.01421697,119950.0,119940.0,0.55033771]
[1755027402140,0.01421697,119950.0,119940.0,1.06079696]
[1755027402826,0.01553697,119950.0,119940.0,0.55033771]
[1755027403025,0.01553697,119950.0,119940.0,1.06079696]
[1755027403165,0.01553697,119950.0,119940.0,1.05781696]
[1755027405095,0.01553697,119950.0,119940.0,1.06079696]
[1755027405310,0.01553697,119950.0,119940.0,0.55033771]
[1755027405523,0.01553697,119950.0,119940.0,1.06079696]
[1755027405724,0.01553697,119950.0,119940.0,0.54735771]
[1755027405968,0.01855697,119950.0,119940.0,1.05584696]
[1755027406387,0.01553697,119950.0,119940.0,1.05584696]
[1755027407033,0.01857697,119950.0,119940.0,1.03082896]
[1755027407447,0.01553697,119950.0,119940.0,1.03082896]
[1755027409024,0.01553697,119950.0,119940.0,0.52036971]
[1755027409287,0.01857697,119950.0,119940.0,0.43764646]
[1755027409926,0.01553697,119950.0,119940.0,0.43764646]
[1755027410137,0.01553697,119950.0,119940.0,0.4124714]
[1755027410514,0.01553697,119950.0,119940.0,0.92293065]
[1755027411286,0.01553697,119950.0,119940.0,0.4124714]
[1755027411663,0.01553697,119950.0,119940.0,0.92293065]
[1755027411865,0.01553697,119950.0,119940.0,0.94779057]
[1755027412896,0.01553697,119950.0,119940.0,0.43733132]
[1755027413097,0.01553697,119950.0,119940.0,0.94779057]
[1755027414309,0.01553697,119950.0,119940.0,0.43733132]
[1755027414459,0.01857697,119950.0,119940.0,0.94779057]
[1755027414662,0.01857697,119950.0,119940.0,1.0104656]
[1755027414862,0.01553697,119950.0,119940.0,1.0104656]
[1755027416249,0.01553697,119950.0,119940.0,1.0124356]
[1755027416459,0.01553697,119950.0,119940.0,0.9324356]
[1755027416707,0.01553697,119950.0,119940.0,0.9354156]
[1755027417223,0.01421697,119950.0,119940.0,0.9354156]
[1755027417583,0.01421697,119950.0,119940.0,1.50854988]
[1755027417820,0.01421697,119950.0,119940.0,1.48368996]
[1755027418460,0.00921697,119950.0,119940.0,1.48368996]
[1755027418671,0.00921697,119950.0,119940.0,0.91055568]
[1755027418890,0.00821697,119950.0,119940.0,1.48368996]
[1755027419104,0.01021697,119950.0,119940.0,1.48368996]
[1755027420210,0.00269697,119950.0,119940.0,1.48368996]
[1755027420844,0.00471697,119950.0,119940.0,0.2095414]
[1755027421050,0.00471697,119950.0,119940.0,1.0224714]
[1755027421051,0.19204213,119950.0,119940.0,1.0224714]
[1755027421275,0.19204213,119950.0,119940.0,1.59560568]
[1755027421276,0.02530599,119950.0,119940.0,1.59560568]
[1755027421731,0.19204213,119950.0,119940.0,1.59560568]
[1755027422380,0.02530599,119950.0,119940.0,1.59560568]
[1755027422596,0.19204213,119950.0,119940.0,1.59560568]
[1755027423985,0.19204213,119950.0,119940.0,0.90560568]
[1755027424205,0.02530599,119950.0,119940.0,0.77772568]
[1755027424631,0.02530599,119950.0,119940.0,0.90560568]
[1755027424852,0.19204213,119950.0,119940.0,0.90560568]
[1755027425074,0.02530599,119950.0,119940.0,0.90560568]
[1755027426521,0.02530599,119950.0,119940.0,0.77772568]
[1755027426734,0.02530599,119950.0,119940.0,0.90560568]
[1755027427435,0.01744902,119940.0,119930.0,0.73989822]
[1755027427641,0.01744902,119940.0,119930.0,0.96295822]
[1755027428557,0.01844902,119940.0,119930.0,0.96295822]
[1755027428997,0.01844902,119940.0,119930.0,0.97119171]
[1755027429371,0.001,119940.0,119930.0,0.97119171]
[1755027430099,0.001,119940.0,119930.0,1.54432599]
[1755027433233,0.001,119940.0,119930.0,0.97119171]
[1755027433483,0.001,119940.0,119930.0,0.39805743]
[1755027433914,0.001,119940.0,119930.0,0.97119171]
[1755027434131,0.0023,119940.0,119930.0,0.97119171]
[1755027434556,0.0023,119940.0,119930.0,0.39805743]
[1755027434767,0.0023,119940.0,119930.0,0.90758353]
[1755027435205,0.0023,119940.0,119930.0,0.90440353]
[1755027435417,0.0023,119940.0,119930.0,0.39287743]
[1755027435418,0.00542,119940.0,119930.0,0.39287743]
[1755027435873,0.18961906,119940.0,119930.0,0.21816]
[1755027436360,0.18961906,119940.0,119930.0,0.38492394]
[1755027437054,0.18961906,119940.0,119930.0,0.29492394]
[1755027438411,0.18961906,119940.0,119930.0,0.30341972]
[1755027439340,0.18961906,119940.0,119930.0,0.29492394]
[1755027439909,0.18961906,119940.0,119930.0,0.12816]
[1755027441443,0.18961906,119940.0,119930.0,0.29492394]
[1755027442084,0.18961906,119940.0,119930.0,0.12808]
[1755027442522,0.18961906,119940.0,119930.0,0.29484394]
[1755027443165,0.18961906,119940.0,119930.0,0.12808]
[1755027445220,0.22525472,119940.0,119930.0,0.12808]
[1755027445421,0.01744902,119930.0,119920.0,0.18362809]
[1755027445627,0.01946902,119930.0,119920.0,1.01174809]
[1755027445814,0.18623296,119930.0,119920.0,1.01174809]
[1755027446023,0.01946902,119930.0,119920.0,1.01174809]
[1755027446233,0.01946902,119930.0,119920.0,1.01692809]
[1755027446451,0.01744902,119930.0,119920.0,1.01692809]
[1755027446859,0.01744902,119930.0,119920.0,1.52645419]
[1755027447309,0.001,119940.0,119930.0,0.16676394]
[1755027447538,0.01844902,119940.0,119930.0,0.68355458]
[1755027447747,0.01744902,119940.0,119930.0,0.68147004]
[1755027448945,0.01844902,119940.0,119930.0,0.68147004]
[1755027449773,0.01844902,119940.0,119930.0,0.78147004]
[1755027449898,0.001,119940.0,119930.0,0.78147004]
[1755027450959,0.01744902,119950.0,119940.0,0.16675004]
[1755027451166,0.01744902,119950.0,119940.0,0.80651614]
[1755027451379,0.01744902,119950.0,119940.0,0.80967614]
[1755027451810,0.01948902,119950.0,119940.0,0.30015004]
[1755027452235,0.01744902,119950.0,119940.0,0.30015004]
[1755027452451,0.01844902,119950.0,119940.0,0.30015004]
[1755027453063,0.01844902,119950.0,119940.0,0.80967614]
[1755027457009,0.001,119950.0,119940.0,0.80967614]
[1755027457849,0.0002,119960.0,119950.0,0.16673614]
[1755027458056,0.0002,119960.0,119950.0,0.68362644]
[1755027458260,0.0002,119960.0,119950.0,0.68154224]
[1755027458471,0.0002,119960.0,119950.0,0.76426549]
[1755027459750,0.0002,119960.0,119950.0,1.46426549]
[1755027459963,0.0022,119960.0,119950.0,1.46426549]
[1755027460174,0.0022,119960.0,119950.0,1.59222549]
[1755027460401,0.0042,119960.0,119950.0,1.59222549]
[1755027460609,0.0022,119960.0,119950.0,1.59222549]
[1755027461025,0.0022,119960.0,119950.0,1.59322549]
[1755027462600,0.0022,119960.0,119950.0,1.79322549]
[1755027462855,0.0002,119960.0,119950.0,1.79322549]
[1755027464044,0.0002,119960.0,119950.0,1.28369939]
[1755027464266,0.0002,119960.0,119950.0,1.79322549]
[1755027473353,0.0002,119960.0,119950.0,1.09322549]
[1755027474473,0.00224,119960.0,119950.0,1.09322549]
[1755027476288,0.0002,119960.0,119950.0,1.79322549]
[1755027480579,0.00516,119960.0,119950.0,0.86773614]
[1755027480791,0.17188224,119960.0,119950.0,0.99561614]
[1755027481245,0.17188224,119960.0,119950.0,0.82888]
[1755027481469,0.17188224,119960.0,119950.0,0.29561614]
[1755027481684,0.18933126,119960.0,119950.0,0.12888]
[1755027481897,0.69885736,119960.0,119950.0,0.001]
[1755027482110,0.18933126,119960.0,119950.0,0.12888]
[1755027483013,0.27181569,119960.0,119950.0,0.12888]
[1755027483235,0.27281569,119960.0,119950.0,0.12888]
[1755027483457,0.27281569,119960.0,119950.0,0.12788]
[1755027483706,0.16673614,119950.0,119930.0,0.68462823]
[1755027483925,0.18617906,119940.0,119930.0,0.17518345]
[1755027484138,0.18617906,119940.0,119930.0,0.30306345]
[1755027484139,0.18915906,119940.0,119930.0,0.30306345]
[1755027484761,0.18915906,119940.0,119930.0,0.12796132]
[1755027485037,0.18915906,119940.0,119930.0,8.132e-05]
[1755027485249,0.18915906,119940.0,119930.0,0.12796132]
[1755027486107,0.18915906,119940.0,119930.0,0.13096132]
[1755027486334,0.18915906,119940.0,119930.0,0.29772526]
[1755027486551,0.18915906,119940.0,119930.0,0.12996132]
[1755027486760,0.19015906,119940.0,119930.0,0.12996132]
[1755027487409,0.22584858,119940.0,119930.0,0.12996132]
[1755027488294,0.19015906,119940.0,119930.0,0.29672526]
[1755027490329,0.19015906,119940.0,119930.0,0.12996132]
[1755027490756,0.19015906,119940.0,119930.0,0.00208132]
[1755027490969,0.19015906,119940.0,119930.0,0.12996132]
[1755027493971,0.78240841,119940.0,119930.0,0.12996132]
[1755027494190,0.86489284,119940.0,119930.0,0.12996132]
[1755027495642,0.86389284,119940.0,119930.0,0.12996132]
[1755027495861,0.86389284,119940.0,119930.0,0.12796132]
[1755027496068,0.86689284,119940.0,119930.0,0.12796132]
[1755027496287,0.86889284,119940.0,119930.0,0.12796132]
[1755027496518,0.35936674,119940.0,119930.0,0.12796132]
[1755027498230,0.35936674,119940.0,119930.0,8.132e-05]
[1755027498460,0.35936674,119940.0,119930.0,0.12796132]
[1755027499097,0.27688231,119940.0,119930.0,0.12796132]
[1755027500457,0.27192231,119940.0,119930.0,0.29995526]
[1755027500686,0.27390231,119940.0,119930.0,0.29995526]
[1755027500895,0.27390231,119940.0,119930.0,0.13319132]
[1755027501032,0.27390231,119940.0,119930.0,0.29681526]
[1755027501238,0.27390231,119940.0,119930.0,0.13005132]
[1755027502417,0.18919906,119940.0,119930.0,0.29995526]
[1755027502761,0.19117906,119940.0,119930.0,0.29995526]
[1755027503172,0.19117906,119940.0,119930.0,0.29681526]
[1755027503383,0.82500073,119940.0,119930.0,0.12796132]
[1755027503598,0.31547463,119940.0,119930.0,0.12796132]
[1755027507490,0.31547463,119940.0,119930.0,8.132e-05]
[1755027507633,0.31547463,119940.0,119930.0,0.12796132]
[1755027510638,0.27390231,119940.0,119930.0,0.12796132]
[1755027512058,0.27390231,119940.0,119930.0,8.132e-05]
[1755027512276,0.27390231,119940.0,119930.0,0.12796132]
[1755027514671,0.27709231,119940.0,119930.0,0.12796132]
[1755027516965,0.27709231,119940.0,119930.0,0.12896132]
[1755027519465,0.35638674,119940.0,119930.0,0.12896132]
[1755027520195,0.35957674,119940.0,119930.0,0.12896132]
[1755027521537,0.38460674,119940.0,119930.0,0.12896132]
[1755027522411,0.38141674,119940.0,119930.0,0.12896132]
[1755027522834,0.29893231,119940.0,119930.0,0.13386132]
[1755027523043,0.29695231,119940.0,119930.0,0.13386132]
[1755027528408,0.27192231,119940.0,119930.0,0.13386132]
[1755027529427,0.29695231,119940.0,119930.0,0.13386132]
[1755027529640,0.29824231,119940.0,119930.0,0.13386132]
[1755027530043,0.30174269,119940.0,119930.0,0.13386132]
[1755027530343,0.30174269,119940.0,119930.0,0.13092132]
[1755027531069,0.34890757,119940.0,119930.0,0.13092132]
[1755027531985,0.30174269,119940.0,119930.0,0.12896132]
[1755027532200,0.30174269,119940.0,119930.0,0.13092132]
[1755027534118,0.30174269,119940.0,119930.0,0.00304132]
[1755027534328,0.30174269,119940.0,119930.0,0.13088132]
[1755027536596,0.27671269,119940.0,119930.0,0.13088132]
[1755027537043,0.30174269,119940.0,119930.0,0.13088132]
[1755027537292,0.27671269,119940.0,119930.0,0.13088132]
[1755027537924,0.34599546,119940.0,119930.0,0.13088132]
[1755027538134,0.27671269,119940.0,119930.0,0.13088132]
[1755027539218,0.27671269,119940.0,119930.0,0.13411132]
[1755027540653,0.27671269,119940.0,119930.0,0.00627132]
[1755027540852,0.27671269,119940.0,119930.0,0.13411132]
[1755027541215,0.27671269,119940.0,119930.0,0.7074702]
[1755027541429,0.27542269,119940.0,119930.0,0.7074702]
[1755027541639,0.27755269,119940.0,119930.0,0.7074702]
[1755027542265,0.27755269,119940.0,119930.0,0.13411132]
[1755027542499,0.27542269,119940.0,119930.0,0.87423414]
[1755027542905,0.27542269,119940.0,119930.0,0.87323414]
[1755027543845,0.27542269,119940.0,119930.0,0.29987526]
[1755027543999,0.27542269,119940.0,119930.0,0.87323414]
[1755027544399,0.27142269,119940.0,119930.0,0.29987526]
[1755027544613,0.26942269,119940.0,119930.0,0.87323414]
[1755027544827,0.27142269,119940.0,119930.0,0.87323414]
[1755027545058,0.27242269,119940.0,119930.0,0.87323414]
[1755027546519,0.27242269,119940.0,119930.0,0.74539414]
[1755027546724,0.27242269,119940.0,119930.0,0.29987526]
[1755027546927,0.27242269,119940.0,119930.0,0.87323414]
[1755027549070,0.19069944,119940.0,119930.0,0.87323414]
[1755027549511,0.19069944,119940.0,119930.0,0.7064702]
[1755027549703,0.19069944,119940.0,119930.0,0.13311132]
[1755027549903,0.27318387,119940.0,119930.0,0.7064702]